bitfinex/quotes_BTCUSD_20250328
["timestamp","ask_amount","ask_price","bid_price","bid_amount"]
[1743190521320,4.434e-05,83852.0,83851.0,0.949443]
[1743190521464,0.00675743,83852.0,83851.0,0.7]
[1743190521667,0.02894028,83852.0,83851.0,0.938518]
[1743190521869,0.02222719,83852.0,83851.0,0.950443]
[1743190522092,0.02222719,83852.0,83851.0,1.031243]
[1743190522292,0.02222719,83852.0,83851.0,1.14550064]
[1743190522978,4.434e-05,83852.0,83851.0,1.14550064]
[1743190524107,4.434e-05,83852.0,83851.0,1.16004149]
[1743190524780,4.434e-05,83852.0,83851.0,1.16504149]
[1743190524977,4.434e-05,83852.0,83851.0,1.16204149]
[1743190525312,4.434e-05,83852.0,83851.0,1.16004149]
[1743190525539,4.434e-05,83852.0,83851.0,1.22606556]
[1743190525754,4.434e-05,83852.0,83851.0,1.21244149]
[1743190526540,4.434e-05,83852.0,83851.0,1.21444149]
[1743190527532,3.4e-07,83852.0,83851.0,1.93315255]
[1743190528063,0.02218285,83868.0,83867.0,0.38843585]
[1743190528282,0.02222726,83868.0,83867.0,2.31659349]
[1743190529114,4.441e-05,83868.0,83867.0,2.31659349]
[1743190530592,4.441e-05,83868.0,83867.0,2.31959349]
[1743190530803,4.441e-05,83868.0,83867.0,2.32259349]
[1743190532433,4.441e-05,83868.0,83867.0,2.34649577]
[1743190534942,4.1e-07,83868.0,83867.0,2.34649577]
[1743190535115,4.1e-07,83868.0,83867.0,2.64649577]
[1743190536127,4.1e-07,83868.0,83867.0,2.64349577]
[1743190536324,4.1e-07,83868.0,83867.0,2.64049577]
[1743190536530,4.1e-07,83868.0,83867.0,2.64649577]
[1743190536845,4.1e-07,83868.0,83867.0,2.65249577]
[1743190537256,4.1e-07,83868.0,83867.0,1.96418877]
[1743190537627,4.1e-07,83868.0,83867.0,1.97618877]
[1743190540240,4.1e-07,83868.0,83867.0,2.67618877]
[1743190541739,4.1e-07,83868.0,83867.0,2.70118877]
[1743190542975,3.1e-07,83868.0,83867.0,2.70118877]
[1743190545956,3.1e-07,83868.0,83867.0,2.70118877]
[1743190548364,0.0001689,83900.0,83867.0,2.70118877]
[1743190548365,0.0001689,83900.0,83899.0,0.2503]
[1743190548546,0.00021332,83900.0,83899.0,1.64673849]
[1743190550114,0.00021332,83900.0,83899.0,1.65992268]
[1743190550526,0.00021332,83900.0,83899.0,1.66092268]
[1743190552829,0.00021332,83900.0,83899.0,1.73512268]
[1743190553274,0.00021332,83900.0,83899.0,1.73812268]
[1743190553474,0.00021332,83900.0,83899.0,1.73712268]
[1743190553669,0.00021332,83900.0,83899.0,1.74012268]
[1743190556521,0.00021332,83900.0,83899.0,1.87352268]
[1743190559463,0.00021332,83900.0,83899.0,1.89575368]
[1743190560064,0.00021332,83900.0,83899.0,1.19575368]
[1743190560264,3.2e-07,83900.0,83899.0,1.19575368]
[1743190560464,3.2e-07,83900.0,83899.0,1.24565368]
[1743190561080,3.2e-07,83900.0,83899.0,1.24265368]
[1743190561601,3.2e-07,83900.0,83899.0,1.16745368]
[1743190561775,3.2e-07,83900.0,83899.0,1.11755368]
[1743190561972,3.2e-07,83900.0,83899.0,1.12355368]
[1743190562177,3.2e-07,83900.0,83899.0,1.12055368]
[1743190562396,3.2e-07,83900.0,83899.0,1.12355368]
[1743190562988,3.2e-07,83900.0,83899.0,1.12055368]
[1743190563192,3.2e-07,83900.0,83899.0,2.23305368]
[1743190563392,3.2e-07,83900.0,83899.0,2.23905368]
[1743190564219,3.2e-07,83900.0,83899.0,2.27624755]
[1743190564575,3.2e-07,83900.0,83899.0,2.23905368]
[1743190565070,3.2e-07,83900.0,83899.0,2.27624565]
[1743190565359,3.2e-07,83900.0,83899.0,2.57624565]
[1743190566957,3.2e-07,83900.0,83899.0,2.57658325]
[1743190567159,0.00016912,83900.0,83899.0,2.57658325]
[1743190569238,0.00016912,83900.0,83899.0,2.53939128]
[1743190569443,0.00016912,83900.0,83899.0,2.57660053]
[1743190571043,0.00016912,83900.0,83899.0,2.09145043]
[1743190571226,0.00016912,83900.0,83899.0,2.07926624]
[1743190571624,0.08246912,83900.0,83899.0,2.05703524]
[1743190571825,0.08246912,83900.0,83899.0,1.64453524]
[1743190572107,0.08246912,83900.0,83899.0,1.63853524]
[1743190572363,0.08246912,83900.0,83899.0,1.63253524]
[1743190572615,0.08246912,83900.0,83899.0,1.63653524]
[1743190572770,0.08246912,83900.0,83899.0,1.64053524]
[1743190573181,0.08246912,83900.0,83899.0,1.5262776]
[1743190573571,0.10477601,83900.0,83899.0,1.5262776]
[1743190575058,0.02247601,83900.0,83899.0,1.64053524]
[1743190575264,1e-08,83900.0,83899.0,1.64053524]
[1743190575785,0.01868735,83915.0,83899.0,1.64053524]
[1743190575786,0.01868735,83915.0,83914.0,0.250255]
[1743190576003,0.01873175,83915.0,83914.0,1.06451264]
[1743190576215,4.44e-05,83915.0,83914.0,1.06451264]
[1743190576609,4.44e-05,83915.0,83914.0,1.10033064]
[1743190577930,4.44e-05,83915.0,83914.0,1.66785064]
[1743190578126,4.44e-05,83915.0,83914.0,1.67997684]
[1743190579193,0.0002132,83915.0,83914.0,1.67997684]
[1743190579497,0.0002132,83915.0,83914.0,1.69451769]
[1743190579646,0.0002132,83915.0,83914.0,1.70814176]
[1743190579861,0.0002132,83915.0,83914.0,1.69451769]
[1743190580665,0.0002132,83915.0,83914.0,2.10701769]
[1743190581719,0.0002132,83915.0,83914.0,2.10901769]
[1743190581876,0.0002132,83915.0,83914.0,2.10801769]
[1743190582075,0.0002132,83915.0,83914.0,2.11101769]
[1743190582643,0.0002132,83915.0,83914.0,2.11501769]
[1743190582844,0.0002132,83915.0,83914.0,2.22171064]
[1743190584658,0.0002132,83915.0,83914.0,1.64003264]
[1743190585545,0.3277652,83915.0,83914.0,1.27552]
[1743190585745,0.33501049,83915.0,83914.0,1.27552]
[1743190586255,0.08475849,83915.0,83914.0,1.287436]
[1743190586449,0.08475849,83915.0,83914.0,1.27552]
[1743190586651,0.08475849,83915.0,83914.0,0.813859]
[1743190586880,0.08475849,83915.0,83914.0,0.57552]
[1743190587212,0.32309449,83915.0,83914.0,0.57152]
[1743190587459,0.33501049,83915.0,83914.0,0.57152]
[1743190587684,0.33501049,83915.0,83914.0,1.27152]
[1743190587893,0.33501049,83915.0,83914.0,1.26752]
[1743190588091,0.33501049,83915.0,83914.0,1.26852]
[1743190588533,0.33501049,83915.0,83914.0,1.26952]
[1743190588754,0.33501049,83915.0,83914.0,0.56852]
[1743190588755,0.67974014,83915.0,83914.0,0.56852]
[1743190589173,0.67974014,83915.0,83914.0,0.56952]
[1743190589559,0.67974014,83915.0,83914.0,0.56752]
[1743190589914,0.68174014,83915.0,83914.0,0.56752]
[1743190590314,0.060318,83904.0,83899.0,0.0003376]
[1743190590576,0.2455524,83903.0,83899.0,0.2387186]
[1743190590788,0.0071824,83903.0,83899.0,0.2506376]
[1743190590979,0.0071824,83903.0,83901.0,0.238373]
[1743190591154,0.0071824,83903.0,83902.0,0.238373]
[1743190591575,0.0071824,83903.0,83902.0,0.250291]
[1743190592121,0.0785,83905.0,83902.0,0.250291]
[1743190592122,0.0785,83905.0,83904.0,0.250285]
[1743190592256,0.0785,83905.0,83902.0,0.002]
[1743190592463,0.0856824,83905.0,83902.0,0.002]
[1743190592810,0.0856824,83905.0,83902.0,0.004]
[1743190593031,0.0856824,83905.0,83900.0,0.0003376]
[1743190593333,0.238373,83902.0,83900.0,0.0003376]
[1743190593482,0.00713902,83901.0,83900.0,0.0003376]
[1743190594205,0.00713902,83901.0,83900.0,0.2387166]
[1743190594746,0.238374,83902.0,83900.0,0.0003376]
[1743190594949,0.00713902,83901.0,83900.0,0.0003376]
[1743190595201,0.00713902,83901.0,83900.0,0.0033376]
[1743190595418,0.25743302,83901.0,83900.0,0.0033376]
[1743190595587,0.25743302,83901.0,83900.0,0.0063376]
[1743190595743,0.25743302,83901.0,83900.0,0.0033376]
[1743190595946,0.25743302,83901.0,83900.0,0.0063376]
[1743190596146,0.00713902,83901.0,83900.0,0.0063376]
[1743190596375,0.011918,83902.0,83900.0,0.0063376]
[1743190596571,0.00713902,83901.0,83900.0,0.0063376]
[1743190596990,0.24551502,83901.0,83900.0,0.0063376]
[1743190597365,0.24551502,83901.0,83900.0,0.0033376]
[1743190597572,0.00713902,83901.0,83900.0,0.0033376]
[1743190597774,0.24551502,83901.0,83900.0,0.0063376]
[1743190597975,0.24551502,83901.0,83900.0,0.0033376]
[1743190598171,0.00713902,83901.0,83900.0,0.0033376]
[1743190598397,0.00713902,83901.0,83900.0,0.0053376]
[1743190598740,0.00713902,83901.0,83900.0,0.0033376]
[1743190598938,0.316865,83905.0,83900.0,0.2566346]
[1743190599184,0.238376,83901.0,83900.0,0.0063376]
[1743190599754,0.24551502,83901.0,83900.0,0.0033376]
[1743190600500,0.24551502,83901.0,83900.0,0.0003376]
[1743190600700,0.25743302,83901.0,83900.0,0.0003376]
[1743190600927,0.25743302,83901.0,83900.0,0.0023376]
[1743190601126,0.00713902,83901.0,83900.0,0.0023376]
[1743190601570,0.0785,83905.0,83901.0,0.250291]
[1743190601797,0.00713902,83904.0,83903.0,0.238369]
[1743190602352,0.24550902,83904.0,83901.0,0.250291]
[1743190602986,0.00713902,83904.0,83901.0,0.011918]
[1743190603191,0.00713902,83904.0,83903.0,0.001]
[1743190603615,0.24550602,83904.0,83903.0,0.001]
[1743190604042,0.24567482,83904.0,83903.0,0.001]
[1743190605143,0.23837,83903.0,83901.0,0.238375]
[1743190605327,0.00709059,83902.0,83901.0,0.239375]
[1743190605641,0.00709059,83902.0,83901.0,0.238375]
[1743190605944,0.00709059,83902.0,83900.0,0.2387156]
[1743190606149,0.00709059,83902.0,83900.0,0.0003376]
[1743190606361,0.00709059,83902.0,83900.0,0.2387136]
[1743190606564,0.24546459,83902.0,83901.0,0.001]
[1743190606772,0.25738259,83902.0,83901.0,0.001]
[1743190607134,0.250294,83901.0,83900.0,0.0003376]
[1743190607558,0.25738459,83901.0,83900.0,0.0003376]
[1743190608174,0.25738459,83901.0,83900.0,0.0023376]
[1743190608576,0.25738459,83901.0,83900.0,0.0033376]
[1743190608774,0.25738459,83901.0,83900.0,0.0023376]
[1743190609196,0.25738459,83901.0,83900.0,0.0043376]
[1743190612782,0.26920047,83901.0,83900.0,0.0043376]
[1743190612981,0.25738459,83901.0,83900.0,0.0043376]
[1743190613180,0.00709059,83901.0,83900.0,0.0043376]
[1743190613496,0.2385378,83904.0,83901.0,0.238374]
[1743190614056,0.238375,83902.0,83900.0,0.0043376]
[1743190614266,0.238376,83901.0,83900.0,0.0043376]
[1743190614455,0.0120868,83904.0,83901.0,0.238375]
[1743190614680,0.0001688,83904.0,83903.0,0.23837]
[1743190614883,0.0001688,83904.0,83901.0,0.011918]
[1743190615043,0.0001688,83904.0,83903.0,0.250288]
[1743190615759,0.238375,83902.0,83900.0,0.0003376]
[1743190615962,0.238376,83901.0,83900.0,0.0003376]
[1743190616769,0.238373,83902.0,83900.0,0.0003376]
[1743190617166,0.238376,83901.0,83900.0,0.0003376]
[1743190617366,0.238373,83902.0,83900.0,0.0003376]
[1743190618128,0.238376,83901.0,83900.0,0.0003376]
[1743190618336,0.250294,83901.0,83900.0,0.0023376]
[1743190618487,0.238376,83901.0,83900.0,0.0043376]
[1743190618875,0.238376,83901.0,83900.0,0.0023376]
[1743190619057,0.238376,83901.0,83900.0,0.0013376]
[1743190619267,0.238376,83901.0,83900.0,0.0003376]
[1743190619423,0.238376,83901.0,83900.0,0.0023376]
[1743190619608,0.238376,83901.0,83900.0,0.0043376]
[1743190620267,0.0001688,83904.0,83900.0,0.0043376]
[1743190620425,0.0001688,83904.0,83903.0,0.23837]
[1743190620948,0.0001688,83904.0,83903.0,0.250288]
[1743190621474,0.0001688,83904.0,83902.0,0.011918]
[1743190621627,0.0001688,83904.0,83903.0,0.23837]
[1743190621838,0.0001688,83904.0,83903.0,0.251288]
[1743190622587,0.0001688,83904.0,83903.0,0.252288]
[1743190624161,0.0001688,83904.0,83903.0,0.36654564]
[1743190624567,0.0001688,83904.0,83903.0,0.44544564]
[1743190625203,0.0001688,83904.0,83903.0,0.52118374]
[1743190625807,0.0001688,83904.0,83903.0,0.52595974]
[1743190626440,0.0001688,83904.0,83903.0,0.52395974]
[1743190626856,0.0001688,83904.0,83903.0,0.52595974]
[1743190627887,0.0001688,83904.0,83903.0,0.52695974]
[1743190628249,8e-07,83904.0,83903.0,0.52595974]
[1743190628616,8e-07,83904.0,83903.0,0.53595974]
[1743190630185,8e-07,83904.0,83903.0,0.66931974]
[1743190632543,8e-07,83904.0,83903.0,0.39321889]
[1743190632750,8e-07,83904.0,83903.0,0.37654564]
[1743190633368,8e-07,83904.0,83903.0,0.94406564]
[1743190634495,8e-07,83904.0,83903.0,0.95612389]
[1743190636050,8e-07,83904.0,83903.0,0.97066474]
[1743190636434,8e-07,83904.0,83903.0,1.09746474]
[1743190637600,8e-07,83904.0,83903.0,1.10224074]
[1743190638588,8e-07,83904.0,83903.0,1.02334074]
[1743190638992,8e-07,83904.0,83903.0,0.834584]
[1743190639351,0.07984299,83909.0,83908.0,0.250273]
[1743190639706,0.08466086,83909.0,83908.0,0.250273]
[1743190639908,0.0002132,83915.0,83914.0,0.250255]
[1743190640314,0.00503107,83915.0,83914.0,0.250255]
[1743190640546,0.0002132,83915.0,83914.0,0.250255]
[1743190640712,0.00503107,83915.0,83914.0,0.250255]
[1743190640911,0.0002132,83915.0,83914.0,0.250255]
[1743190641133,0.00503107,83915.0,83914.0,0.250255]
[1743190641336,0.0002132,83915.0,83914.0,0.250255]
[1743190641570,0.0002132,83915.0,83911.0,0.250261]
[1743190641779,0.00481787,83914.0,83913.0,0.238341]
[1743190642115,0.00481787,83914.0,83913.0,0.250258]
[1743190642317,0.08781787,83914.0,83913.0,0.250258]
[1743190642999,0.238367,83904.0,83903.0,0.5728576]
[1743190643212,0.368267,83904.0,83903.0,0.5728576]
[1743190643378,0.38498759,83904.0,83903.0,0.5728576]
[1743190643780,0.39669001,83904.0,83903.0,0.5728576]
[1743190644000,0.13470259,83904.0,83903.0,0.8231456]
[1743190644216,0.37306959,83904.0,83903.0,0.5728576]
[1743190644480,0.08780259,83904.0,83903.0,0.8112276]
[1743190644609,0.08780259,83904.0,83903.0,0.8231456]
[1743190644610,0.00480259,83904.0,83903.0,0.8231456]
[1743190644814,0.01868843,83914.0,83913.0,0.011917]
[1743190645086,0.01868843,83914.0,83913.0,0.36451664]
[1743190646219,0.01868843,83914.0,83913.0,0.36551664]
[1743190646421,0.01868843,83914.0,83913.0,0.36651664]
[1743190648543,0.01868843,83914.0,83913.0,0.38105749]
[1743190649942,0.01868843,83914.0,83913.0,0.42685749]
[1743190650158,2e-07,83915.0,83914.0,0.56479585]
[1743190650334,1e-06,83918.0,83917.0,0.26478685]
[1743190650578,1e-06,83918.0,83917.0,0.79154449]
[1743190651536,1e-06,83918.0,83917.0,1.49154449]
[1743190652554,1e-06,83918.0,83917.0,1.49454449]
[1743190652714,1e-06,83918.0,83917.0,1.48000364]
[1743190652919,1e-06,83918.0,83917.0,1.48300364]
[1743190653830,1e-06,83918.0,83917.0,2.05048364]
[1743190655558,1e-06,83918.0,83917.0,2.06502449]
[1743190655965,1e-06,83918.0,83917.0,2.14382449]
[1743190660977,1e-06,83918.0,83917.0,2.14860049]
[1743190663696,1e-06,83918.0,83917.0,2.14893809]
[1743190664525,1e-06,83918.0,83917.0,2.05082124]
[1743190668084,1e-06,83918.0,83917.0,1.2738176]
[1743190668284,1e-06,83918.0,83917.0,1.5240636]
[1743190669329,1.5e-07,83918.0,83917.0,1.5240636]
[1743190670283,0.00488848,83918.0,83917.0,1.5240636]
[1743190670486,0.25024315,83918.0,83917.0,1.2738176]
[1743190670728,0.08198848,83918.0,83917.0,1.2738176]
[1743190671097,0.32031548,83918.0,83917.0,1.2738176]
[1743190671907,0.08198848,83918.0,83917.0,1.5240636]
[1743190672303,0.00488848,83918.0,83917.0,1.53768767]
[1743190672529,1.5e-07,83918.0,83917.0,1.5240636]
[1743190672932,1.5e-07,83918.0,83917.0,1.2738176]
[1743190673333,0.01191615,83918.0,83917.0,1.2738176]
[1743190673661,0.00487752,83918.0,83917.0,1.2738176]
[1743190673953,0.25512052,83918.0,83917.0,1.2738176]
[1743190674152,0.25024315,83918.0,83917.0,1.2738176]
[1743190674369,0.00487752,83918.0,83917.0,1.2738176]
[1743190674557,0.00487752,83918.0,83917.0,1.5240636]
[1743190674764,0.00487752,83918.0,83917.0,1.2738176]
[1743190674906,0.00487752,83918.0,83917.0,1.5121476]
[1743190675107,1.5e-07,83918.0,83917.0,1.2738176]
[1743190675318,1.5e-07,83918.0,83917.0,1.5240636]
[1743190678475,1.5e-07,83918.0,83917.0,1.5210636]
[1743190678671,1.5e-07,83918.0,83917.0,1.5180636]
[1743190678993,1.5e-07,83918.0,83917.0,1.5220636]
[1743190679420,1.5e-07,83918.0,83917.0,1.5180636]
[1743190679614,1.5e-07,83918.0,83917.0,1.5220636]
[1743190680760,0.00487752,83918.0,83917.0,1.5220636]
[1743190680959,1.5e-07,83918.0,83917.0,1.5220636]
[1743190681166,0.00486736,83918.0,83917.0,1.5220636]
[1743190681394,1.5e-07,83918.0,83917.0,1.5220636]
[1743190681573,0.00486736,83918.0,83917.0,1.5220636]
[1743190682549,1.5e-07,83918.0,83917.0,0.9545836]
[1743190683110,1.5e-07,83918.0,83917.0,1.06884124]
[1743190683527,1.5e-07,83918.0,83917.0,1.08338209]
[1743190684191,1.5e-07,83918.0,83917.0,1.15888209]
[1743190689410,1.5e-07,83918.0,83917.0,1.57138209]
[1743190690221,1.5e-07,83918.0,83917.0,1.49588209]
[1743190695128,1.5e-07,83918.0,83917.0,1.48134124]
[1743190695332,1.5e-07,83918.0,83917.0,0.7043376]
[1743190695662,0.08373581,83918.0,83917.0,0.7043376]
[1743190695869,0.08373581,83918.0,83917.0,0.9426676]
[1743190696269,0.08373581,83918.0,83917.0,0.9545836]
[1743190696506,0.07640015,83918.0,83917.0,0.9545836]
[1743190696933,0.35433955,83918.0,83917.0,0.7043376]
[1743190697204,0.33397881,83918.0,83917.0,0.7043376]
[1743190697390,0.08373581,83918.0,83917.0,0.7043376]
[1743190697878,0.08373581,83918.0,83917.0,0.9426676]
[1743190698080,0.07640015,83918.0,83917.0,0.9545836]
[1743190699160,1.5e-07,83918.0,83917.0,0.9545836]
[1743190699301,1.5e-07,83918.0,83917.0,1.06884124]
[1743190702509,1.5e-07,83918.0,83917.0,1.06813755]
[1743190703339,1.5e-07,83918.0,83917.0,1.1288784]
[1743190703540,1.5e-07,83918.0,83917.0,1.6171784]
[1743190704157,1.5e-07,83918.0,83917.0,1.9171784]
[1743190704381,9.5e-07,83926.0,83925.0,0.34326385]
[1743190704623,9.5e-07,83926.0,83925.0,1.15752149]
[1743190705567,9.5e-07,83926.0,83925.0,1.16352149]
[1743190706274,9.5e-07,83926.0,83925.0,1.16952149]
[1743190709959,9.5e-07,83926.0,83925.0,1.58202149]
[1743190712692,9.5e-07,83926.0,83925.0,1.88202149]
[1743190713900,9.5e-07,83926.0,83925.0,1.50352149]
[1743190714112,9.5e-07,83926.0,83925.0,1.48898064]
[1743190715140,9.5e-07,83926.0,83925.0,1.48298064]
[1743190715310,9.5e-07,83926.0,83925.0,1.47698064]
[1743190715512,9.5e-07,83926.0,83925.0,1.48198064]
[1743190715713,9.5e-07,83926.0,83925.0,1.07348064]
[1743190716614,9.5e-07,83926.0,83925.0,0.959223]
[1743190717871,9.5e-07,83926.0,83925.0,1.07348064]
[1743190718342,9.5e-07,83926.0,83925.0,1.06848064]
[1743190718517,9.5e-07,83926.0,83925.0,0.36848064]
[1743190718722,9.5e-07,83926.0,83925.0,0.36948064]
[1743190718915,9.5e-07,83926.0,83925.0,0.36548064]
[1743190719116,9.5e-07,83926.0,83925.0,0.36448064]
[1743190719330,9.5e-07,83926.0,83925.0,0.36548064]
[1743190719729,9.5e-07,83926.0,83925.0,0.36648064]
[1743190719901,9.5e-07,83926.0,83925.0,1.06648064]
[1743190721511,9.5e-07,83926.0,83925.0,1.08102149]
[1743190722252,9.5e-07,83926.0,83925.0,1.64738149]
[1743190722682,9.5e-07,83926.0,83925.0,1.64938149]
[1743190722821,9.5e-07,83926.0,83925.0,1.65238149]
[1743190723243,9.5e-07,83926.0,83925.0,1.64938149]
[1743190723660,9.5e-07,83926.0,83925.0,1.64638149]
[1743190723975,9.5e-07,83926.0,83925.0,1.64938149]
[1743190724296,9.5e-07,83926.0,83925.0,1.63484064]
[1743190724636,9.5e-07,83926.0,83925.0,1.63784064]
[1743190725993,9.5e-07,83926.0,83925.0,1.27336]
[1743190726203,9.5e-07,83926.0,83925.0,1.511668]
[1743190726403,9.5e-07,83926.0,83925.0,1.523583]
[1743190726598,0.00741059,83926.0,83925.0,1.523583]
[1743190726837,9.5e-07,83926.0,83925.0,1.523583]
[1743190727046,0.40048221,83926.0,83925.0,0.706]
[1743190727246,0.40048221,83926.0,83925.0,0.006]
[1743190727450,0.68208621,83926.0,83925.0,0.006]
[1743190728047,0.69387619,83926.0,83925.0,0.003]
[1743190728493,0.69387619,83926.0,83925.0,0.004]
[1743190729020,0.69387619,83926.0,83925.0,0.003]
[1743190729249,0.69387619,83926.0,83917.0,0.0003376]
[1743190729250,0.632843,83918.0,83917.0,0.0003376]
[1743190729455,0.766163,83918.0,83917.0,0.0003376]
[1743190729659,0.77096361,83918.0,83917.0,0.0003376]
[1743190731119,0.78965091,83918.0,83917.0,0.0003376]
[1743190734311,0.79065091,83918.0,83917.0,0.0003376]
[1743190734513,0.90490855,83918.0,83917.0,0.0003376]
[1743190734899,0.88622125,83918.0,83917.0,0.0003376]
[1743190735598,0.88722125,83918.0,83917.0,0.0003376]
[1743190737399,1.05037889,83918.0,83917.0,0.0003376]
[1743190737817,1.46777889,83918.0,83917.0,6e-07]
[1743190738027,1.49777889,83918.0,83917.0,6e-07]
[1743190738687,1.49677889,83918.0,83917.0,6e-07]
[1743190739264,1.49777889,83918.0,83917.0,6e-07]
[1743190740517,1.51231974,83918.0,83917.0,6e-07]
[1743190742721,1.53100877,83918.0,83917.0,6e-07]
[1743190743528,1.53100877,83918.0,83903.0,0.0053376]
[1743190743529,0.255285,83904.0,83903.0,0.0053376]
[1743190743704,0.93501956,83904.0,83903.0,0.005382]
[1743190744369,0.95371128,83904.0,83903.0,0.005382]
[1743190744647,0.93501956,83904.0,83903.0,0.005382]
[1743190745362,0.93801956,83904.0,83903.0,0.005382]
[1743190745516,1.03865313,83904.0,83903.0,0.005382]
[1743190745716,1.04773147,83904.0,83903.0,0.005382]
[1743190746342,1.07692605,83904.0,83903.0,0.005382]
[1743190747975,1.49432605,83904.0,83903.0,0.005382]
[1743190750637,1.51651705,83904.0,83903.0,0.005382]
[1743190751421,1.51151705,83904.0,83903.0,0.005382]
[1743190752118,1.53520883,83904.0,83903.0,0.005382]
[1743190752913,1.53504883,83904.0,83903.0,0.005382]
[1743190754171,1.53004883,83904.0,83903.0,0.005382]
[1743190754955,1.51135705,83904.0,83903.0,0.005382]
[1743190756820,1.51635705,83904.0,83903.0,0.005382]
[1743190758715,1.51635705,83904.0,83899.0,0.0003376]
[1743190758716,0.255294,83901.0,83899.0,0.0003376]
[1743190758916,0.555297,83900.0,83899.0,2e-07]
[1743190759120,0.66955464,83900.0,83899.0,2e-07]
[1743190759326,0.67419928,83900.0,83899.0,2e-07]
[1743190759880,0.66919928,83900.0,83899.0,2e-07]
[1743190760322,0.68834164,83900.0,83899.0,2e-07]
[1743190760520,0.69234164,83900.0,83899.0,2e-07]
[1743190761217,0.69634164,83900.0,83899.0,2e-07]
[1743190761826,0.56294164,83900.0,83899.0,2e-07]
[1743190762029,0.69634164,83900.0,83899.0,2e-07]
[1743190762235,0.71503457,83900.0,83899.0,2e-07]
[1743190763067,0.58163457,83900.0,83899.0,2e-07]
[1743190763273,0.71503457,83900.0,83899.0,2e-07]
[1743190763477,0.82929221,83900.0,83899.0,2e-07]
[1743190763995,0.81059928,83900.0,83899.0,2e-07]
[1743190764359,1.00055692,83900.0,83899.0,2e-07]
[1743190764980,0.92485692,83900.0,83899.0,2e-07]
[1743190770857,0.94355054,83900.0,83899.0,2e-07]
[1743190774271,0.81015054,83900.0,83899.0,2e-07]
[1743190774471,0.94355054,83900.0,83899.0,2e-07]
[1743190775207,0.94855054,83900.0,83899.0,2e-07]
[1743190778989,0.64855054,83900.0,83899.0,2e-07]
[1743190779210,0.94855054,83900.0,83899.0,2e-07]
[1743190780258,1.36595054,83900.0,83899.0,2e-07]
[1743190781916,1.36611944,83900.0,83899.0,2e-07]
[1743190782444,1.06611944,83900.0,83899.0,2e-07]
[1743190783206,1.36611944,83900.0,83899.0,2e-07]
[1743190787323,1.23271944,83900.0,83899.0,2e-07]
[1743190787523,1.34742582,83900.0,83899.0,2e-07]
[1743190789630,0.93002582,83900.0,83899.0,2e-07]
[1743190790750,0.94456667,83900.0,83899.0,2e-07]
[1743190791006,1.02736667,83900.0,83899.0,2e-07]
[1743190791568,1.02336667,83900.0,83899.0,2e-07]
[1743190791831,1.02436667,83900.0,83899.0,2e-07]
[1743190792037,1.02936667,83900.0,83899.0,0.0010002]
[1743190792209,1.02936667,83900.0,83899.0,2e-07]
[1743190792394,1.02436667,83900.0,83899.0,2e-07]
[1743190792595,1.02936667,83900.0,83899.0,0.0010002]
[1743190792978,1.02936667,83900.0,83899.0,2e-07]
[1743190793652,1.02936667,83900.0,83899.0,1e-06]
[1743190799306,0.93202582,83900.0,83899.0,1e-06]
[1743190799528,0.79362582,83900.0,83899.0,1e-06]
[1743190799876,0.92702582,83900.0,83899.0,1e-06]
[1743190802734,0.94572035,83900.0,83899.0,1e-06]
[1743190804105,0.39806271,83900.0,83899.0,1e-06]
[1743190804439,0.53146271,83900.0,83899.0,1e-06]
[1743190804797,0.28380507,83900.0,83899.0,1e-06]
[1743190805007,0.28380507,83900.0,83899.0,0.049901]
[1743190805008,0.03350807,83900.0,83899.0,0.049901]
[1743190805177,0.28380507,83900.0,83899.0,0.049901]
[1743190805381,0.03350807,83900.0,83899.0,0.049901]
[1743190805584,0.28380507,83900.0,83899.0,0.049901]
[1743190805810,0.27880507,83900.0,83899.0,0.049901]
[1743190806136,0.57880507,83900.0,83899.0,0.049901]
[1743190806477,0.67627578,83900.0,83899.0,0.049901]
[1743190806625,0.67127578,83900.0,83899.0,0.049901]
[1743190806784,0.65258125,83900.0,83899.0,0.049901]
[1743190806997,0.65758125,83900.0,83899.0,0.049901]
[1743190807352,0.65258125,83900.0,83899.0,0.049901]
[1743190807645,0.56011054,83900.0,83899.0,0.049901]
[1743190808034,0.56411054,83900.0,83899.0,0.049901]
[1743190808212,0.55611054,83900.0,83899.0,0.049901]
[1743190808426,0.55711054,83900.0,83899.0,0.049901]
[1743190811354,0.69047054,83900.0,83899.0,0.049901]
[1743190812337,0.75938692,83900.0,83899.0,0.049901]
[1743190815742,0.75938692,83900.0,83899.0,1e-06]
[1743190816481,0.87364456,83900.0,83899.0,1e-06]
[1743190817086,0.87602309,83900.0,83899.0,1e-06]
[1743190817890,0.87502309,83900.0,83899.0,1e-06]
[1743190818051,0.87902309,83900.0,83899.0,1e-06]
[1743190818265,0.9003018,83900.0,83899.0,1e-06]
[1743190818475,0.9033018,83900.0,83899.0,1e-06]
[1743190819409,1.01039578,83900.0,83899.0,1e-06]
[1743190819707,1.00639578,83900.0,83899.0,1e-06]
[1743190819919,1.00939578,83900.0,83899.0,1e-06]
[1743190822487,0.92099615,83900.0,83899.0,1e-06]
[1743190823309,0.91799615,83900.0,83899.0,1e-06]
[1743190823517,0.92299615,83900.0,83899.0,1e-06]
[1743190824018,0.91799615,83900.0,83899.0,1e-06]
[1743190824356,0.91999615,83900.0,83899.0,1e-06]
[1743190824564,0.92499615,83900.0,83899.0,1e-06]
[1743190826545,0.9063018,83900.0,83899.0,1e-06]
[1743190826747,0.7729418,83900.0,83899.0,1e-06]
[1743190826974,0.9063018,83900.0,83899.0,1e-06]
[1743190831382,0.90391671,83900.0,83899.0,1e-06]
[1743190833421,0.9248898,83900.0,83899.0,1e-06]
[1743190834174,0.550345,83884.0,83883.0,0.0492]
[1743190834374,0.550345,83884.0,83883.0,0.04933316]
[1743190834579,0.5572684,83884.0,83883.0,0.04933316]
[1743190834960,0.57596343,83884.0,83883.0,0.04933316]
[1743190835160,0.58764439,83884.0,83883.0,0.04933316]
[1743190835361,0.58964439,83884.0,83883.0,0.04933316]
[1743190835804,0.6129231,83884.0,83883.0,0.04933316]
[1743190836123,0.70848571,83884.0,83883.0,0.04933316]
[1743190839171,0.70848571,83884.0,83883.0,0.04967076]
[1743190839399,0.73187534,83884.0,83883.0,0.00047076]
[1743190840254,0.84613298,83884.0,83883.0,0.00047076]
[1743190840671,0.97533298,83884.0,83883.0,0.00047076]
[1743190840892,0.99487383,83884.0,83883.0,7.6e-07]
[1743190841520,0.98151772,83884.0,83883.0,7.6e-07]
[1743190841722,0.74306008,83884.0,83883.0,7.6e-07]
[1743190842001,0.88146008,83884.0,83883.0,7.6e-07]
[1743190842548,0.88646008,83884.0,83883.0,7.6e-07]
[1743190842956,0.96806008,83884.0,83883.0,7.6e-07]
[1743190843155,1.08231772,83884.0,83883.0,7.6e-07]
[1743190844824,1.10101584,83884.0,83883.0,7.6e-07]
[1743190846459,1.07873713,83884.0,83883.0,7.6e-07]
[1743190848254,0.74447949,83884.0,83883.0,7.6e-07]